bitfinex/quotes_SOLUSD_20250604
["timestamp","ask_amount","ask_price","bid_price","bid_amount"]
[1749006948811,12.85356796,157.05,157.04,18.64964886]
[1749006949824,12.85356796,157.07,157.04,18.64964886]
[1749006949998,12.85356796,157.07,157.05,11.68]
[1749006950982,6.2426,157.13,157.06,18.64964886]
[1749006951488,12.85356796,157.08,157.06,18.64964886]
[1749006951689,12.85356796,157.07,157.06,18.64964886]
[1749006952084,27.5668,157.14,157.06,18.64964886]
[1749006952413,27.5668,157.14,157.05,11.68]
[1749006952414,12.85356796,157.07,157.05,11.68]
[1749006952584,12.85356796,157.07,157.06,60.40964886]
[1749006953595,27.5668,157.14,157.06,60.40964886]
[1749006953795,12.85356796,157.07,157.06,60.40964886]
[1749006954517,12.85356796,157.08,157.07,18.64964886]
[1749006958379,27.5668,157.14,157.07,18.64964886]
[1749006958799,12.85356796,157.09,157.07,18.64964886]
[1749006960318,27.5668,157.14,157.07,18.64964886]
[1749006960319,12.85356796,157.08,157.07,18.64964886]
[1749006961002,12.85356796,157.09,157.07,18.64964886]
[1749006961186,12.85356796,157.08,157.07,18.64964886]
[1749006961805,12.85356796,157.09,157.06,41.76]
[1749006962012,12.85356796,157.08,157.06,41.76]
[1749006962693,12.85356796,157.07,157.06,41.76]
[1749006962900,12.85356796,157.07,157.06,60.40964886]
[1749006963504,1.5668,157.14,157.07,18.64964886]
[1749006963701,12.85356796,157.12,157.07,18.64964886]
[1749006963907,12.85356796,157.11,157.07,31.50321682]
[1749006964888,12.85356796,157.1,157.07,18.64964886]
[1749006965285,12.85356796,157.11,157.07,18.64964886]
[1749006965903,12.85356796,157.11,157.08,18.933972]
[1749006966203,12.85356796,157.12,157.08,18.933972]
[1749006966605,0.8617757,157.18,157.12,18.933972]
[1749006966917,0.8617757,157.18,157.14,18.64964886]
[1749006967293,12.85356796,157.16,157.14,18.64964886]
[1749006967629,0.8617757,157.18,157.14,18.64964886]
[1749006967630,12.85356796,157.15,157.14,18.64964886]
[1749006967915,0.8617757,157.18,157.14,43.44]
[1749006968097,12.85356796,157.15,157.14,43.44]
[1749006968299,0.8617757,157.18,157.14,43.44]
[1749006968521,12.85356796,157.16,157.14,43.44]
[1749006968729,0.8617757,157.18,157.14,43.44]
[1749006969017,12.85356796,157.16,157.14,43.44]
[1749006969196,12.85356796,157.16,157.15,18.64964886]
[1749006969620,0.8617757,157.18,157.15,18.64964886]
[1749006969621,12.85356796,157.17,157.15,18.64964886]
[1749006970114,0.8617757,157.18,157.16,0.28432314]
[1749006970690,0.8617757,157.18,157.16,0.14216157]
[1749006971308,0.8617757,157.18,157.15,31.50321682]
[1749006971505,13.71534366,157.18,157.15,18.64964886]
[1749006971908,12.85356796,157.17,157.13,12.58]
[1749006972103,0.8617757,157.18,157.13,12.58]
[1749006972104,12.85356796,157.15,157.13,12.58]
[1749006972421,0.8617757,157.18,157.14,43.9]
[1749006972595,12.85356796,157.15,157.14,43.9]
[1749006972994,0.8617757,157.18,157.14,43.9]
[1749006973198,12.85356796,157.16,157.14,43.9]
[1749006973519,0.8617757,157.18,157.14,43.9]
[1749006973702,12.85356796,157.16,157.14,43.9]
[1749006974222,12.85356796,157.15,157.14,43.9]
[1749006974702,0.8617757,157.18,157.14,43.9]
[1749006974910,12.85356796,157.15,157.14,43.9]
[1749006976036,12.85356796,157.15,157.13,12.58]
[1749006976344,0.8617757,157.18,157.14,43.8]
[1749006976511,12.85356796,157.15,157.14,43.8]
[1749006977547,12.85356796,157.15,157.13,12.58]
[1749006977712,12.85356796,157.14,157.13,12.58]
[1749006977914,12.85356796,157.14,157.13,56.3]
[1749006982152,12.85356796,157.14,157.13,56.18]
[1749006983055,12.85356796,157.16,157.14,18.64964886]
[1749006983621,0.8617757,157.18,157.14,18.64964886]
[1749006983828,12.85356796,157.16,157.14,18.64964886]
[1749006985049,12.85356796,157.15,157.1,18.64964886]
[1749006985358,12.85356796,157.16,157.15,13.06]
[1749006985532,12.85356796,157.16,157.15,56.54]
[1749006989234,0.8617757,157.18,157.15,56.54]
[1749006989542,12.85356796,157.16,157.15,56.54]
[1749006994046,1.6492,157.15,157.11,67.98]
[1749006994249,1.6492,157.15,157.14,43.16]
[1749006994456,14.50276796,157.15,157.14,43.16]
[1749006994766,27.35633592,157.15,157.11,67.98]
[1749006994965,25.70713592,157.12,157.11,67.98]
[1749006995146,25.70713592,157.12,157.11,111.12]
[1749006995965,25.70713592,157.12,157.11,111.1]
[1749006996344,51.70713592,157.12,157.11,111.1]
[1749006996542,38.85356796,157.12,157.11,111.1]
[1749006997568,38.85356796,157.12,157.11,67.98]
[1749006997864,12.85356796,157.12,157.11,56.16]
[1749006998166,12.85356796,157.12,157.11,56.14]
[1749006998470,1.6492,157.15,157.11,56.14]
[1749006998670,12.85356796,157.12,157.11,56.14]
[1749006999243,0.8617757,157.18,157.11,56.14]
[1749006999244,12.85356796,157.14,157.12,18.64964886]
[1749007000979,12.85356796,157.13,157.11,13.06]
[1749007001182,12.85356796,157.12,157.11,31.70964886]
[1749007001347,0.8617757,157.18,157.11,74.76964886]
[1749007001552,12.85356796,157.12,157.11,74.76964886]
[1749007002975,12.85356796,157.12,157.11,56.08]
[1749007003754,25.70713592,157.12,157.1,12.58]
[1749007003966,12.85356796,157.11,157.1,12.58]
[1749007004171,12.85356796,157.11,157.1,55.56]
[1749007004364,12.85356796,157.11,157.09,12.58]
[1749007004553,12.85356796,157.1,157.09,12.58]
[1749007005470,12.85356796,157.1,157.09,55.54]
[1749007005877,12.85356796,157.1,157.09,12.58]
[1749007006090,12.85356796,157.1,157.09,55.52]
[1749007006667,12.85356796,157.12,157.09,55.52]
[1749007006869,1.6238,157.16,157.09,74.16964886]
[1749007006870,12.85356796,157.1,157.09,74.16964886]
[1749007008256,1.6238,157.16,157.1,18.64964886]
[1749007008458,12.85356796,157.11,157.1,18.64964886]
[1749007008695,1.6238,157.16,157.1,18.64964886]
[1749007008982,12.85356796,157.11,157.1,18.64964886]
[1749007009355,1.6238,157.16,157.1,18.64964886]
[1749007009356,12.85356796,157.12,157.1,18.64964886]
[1749007009770,12.85356796,157.11,157.1,18.64964886]
[1749007010775,7.1477757,157.18,157.1,18.79181043]
[1749007010776,12.85356796,157.13,157.1,18.79181043]
[1749007010980,0.8617757,157.18,157.11,0.14216157]
[1749007011155,12.85356796,157.14,157.11,0.14216157]
[1749007011571,12.85356796,157.13,157.11,0.14216157]
[1749007012154,0.8617757,157.18,157.11,0.14216157]
[1749007012380,12.85356796,157.14,157.11,0.14216157]
[1749007012582,12.85356796,157.15,157.11,0.42648471]
[1749007012992,12.85356796,157.14,157.11,0.42648471]
[1749007013414,12.85356796,157.15,157.11,0.42648471]
[1749007013625,12.85356796,157.15,157.13,0.14216157]
[1749007013918,12.85356796,157.15,157.14,42.76]
[1749007014218,0.8617757,157.18,157.15,18.64964886]
[1749007014510,12.85356796,157.16,157.15,18.64964886]
[1749007014706,12.85356796,157.16,157.15,31.22964886]
[1749007015798,12.85356796,157.16,157.15,12.58]
[1749007017601,12.85356796,157.16,157.15,55.24]
[1749007018989,12.85356796,157.16,157.15,55.2]
[1749007020716,12.85356796,157.16,157.15,55.14]
[1749007021416,12.85356796,157.16,157.15,12.58]
[1749007021615,12.85356796,157.16,157.15,55.14]
[1749007021917,0.8617757,157.18,157.15,55.14]
[1749007022209,12.85356796,157.16,157.15,12.58]
[1749007022419,12.85356796,157.16,157.15,55.14]
[1749007023612,12.85356796,157.16,157.15,55.1]
[1749007024011,12.85356796,157.16,157.15,55.08]
[1749007024214,0.8617757,157.18,157.15,55.08]
[1749007024423,12.85356796,157.16,157.15,55.08]
[1749007026219,0.8617757,157.18,157.15,55.08]
[1749007026514,12.85356796,157.16,157.15,55.08]
[1749007026918,12.85356796,157.16,157.15,12.58]
[1749007027103,12.85356796,157.16,157.15,55.06]
[1749007030115,12.85356796,157.16,157.15,54.98]
[1749007030513,12.85356796,157.16,157.15,12.58]
[1749007030696,12.85356796,157.16,157.15,54.96]
[1749007030890,12.85356796,157.16,157.15,12.58]
[1749007031127,12.85356796,157.16,157.15,42.38]
[1749007031325,26.0,157.14,157.13,12.18]
[1749007031497,51.70713592,157.14,157.13,54.56]
[1749007031798,51.70713592,157.14,157.13,54.54]
[1749007032921,25.70713592,157.14,157.1,12.18]
[1749007033105,12.85356796,157.11,157.1,12.18]
[1749007033291,12.85356796,157.11,157.1,54.5]
[1749007033711,12.85356796,157.11,157.1,12.18]
[1749007033999,1.6109,157.14,157.1,12.18]
[1749007034000,26.0,157.13,157.1,54.5]
[1749007034293,12.85356796,157.11,157.1,12.18]
[1749007034500,12.85356796,157.11,157.1,54.5]
[1749007034721,26.0,157.13,157.1,54.5]
[1749007034896,27.6109,157.14,157.1,54.5]
[1749007035222,5.41881347,157.18,157.1,54.5]
[1749007035223,12.85356796,157.11,157.1,54.5]
[1749007035791,26.0,157.16,157.1,73.14964886]
[1749007036115,12.85356796,157.11,157.1,73.14964886]
[1749007038308,12.85356796,157.11,157.1,54.5]
[1749007040428,26.0,157.17,157.1,73.14964886]
[1749007040723,12.85356796,157.11,157.1,73.14964886]
[1749007043332,12.85356796,157.12,157.11,18.64964886]
[1749007043506,12.85356796,157.13,157.11,18.64964886]
[1749007043905,12.85356796,157.14,157.11,18.64964886]
[1749007044112,12.85356796,157.13,157.11,18.64964886]
[1749007044806,12.85356796,157.12,157.11,18.64964886]
[1749007045215,12.85356796,157.12,157.1,54.5]
[1749007045533,12.85356796,157.11,157.1,73.14964886]
[1749007045827,12.85356796,157.11,157.1,12.18]
[1749007046018,12.85356796,157.11,157.1,54.16]
[1749007047225,12.85356796,157.11,157.1,54.14]
[1749007047605,12.85356796,157.11,157.1,12.18]
[1749007047904,12.85356796,157.11,157.1,54.14]
[1749007048715,28.4726757,157.18,157.1,54.14]
[1749007048925,12.85356796,157.12,157.1,72.78964886]
[1749007049313,12.85356796,157.11,157.1,72.78964886]
[1749007050833,2.4726757,157.18,157.1,72.78964886]
[1749007051135,12.85356796,157.13,157.1,72.78964886]
[1749007051433,2.4726757,157.18,157.1,72.78964886]
[1749007051434,12.85356796,157.14,157.1,72.78964886]
[1749007051648,12.85356796,157.15,157.11,18.79181043]
[1749007052811,12.85356796,157.14,157.11,18.79181043]
[1749007055434,0.8617757,157.18,157.11,18.79181043]
[1749007055623,0.8617757,157.18,157.13,18.79181043]
[1749007055820,0.8617757,157.18,157.11,19.49316796]
[1749007055821,12.85356796,157.15,157.11,19.49316796]
[1749007056021,0.8617757,157.18,157.12,18.64964886]
[1749007056022,12.85356796,157.14,157.12,18.64964886]
[1749007056325,0.8617757,157.18,157.12,31.64537839]
[1749007056512,12.85356796,157.16,157.12,31.64537839]
[1749007057039,12.85356796,157.15,157.12,19.07613357]
[1749007058140,0.8617757,157.18,157.12,19.07613357]
[1749007058141,12.85356796,157.14,157.12,19.07613357]
[1749007058436,12.85356796,157.15,157.12,165.07613357]
[1749007059725,12.85356796,157.16,157.12,177.92970153]
[1749007060023,13.71534366,157.18,157.14,18.79181043]
[1749007060229,13.71534366,157.18,157.16,18.64964886]
[1749007060230,12.85356796,157.17,157.16,18.64964886]
[1749007060440,12.85356796,157.17,157.16,30.38964886]
[1749007060639,0.8617757,157.18,157.16,30.38964886]
[1749007060953,12.85356796,157.17,157.16,30.38964886]
[1749007063346,0.8617757,157.18,157.16,30.38964886]
[1749007064152,12.85356796,157.17,157.16,30.38964886]
[1749007064523,0.8617757,157.18,157.16,30.81613357]
[1749007064825,13.71534366,157.18,157.16,30.53181043]
[1749007066721,12.85356796,157.17,157.16,30.53181043]
[1749007067638,12.85356796,157.17,157.16,72.00964886]
[1749007069151,12.85356796,157.17,157.16,53.36]
[1749007069526,12.85356796,157.17,157.16,72.00964886]
[1749007071054,12.85356796,157.17,157.16,11.74]
[1749007071371,12.85356796,157.17,157.16,53.32]
[1749007072156,12.85356796,157.17,157.16,11.74]
[1749007072341,12.85356796,157.17,157.16,53.3]
[1749007072523,12.85356796,157.17,157.16,11.74]
[1749007072718,12.85356796,157.17,157.16,53.3]
[1749007072923,12.85356796,157.17,157.16,41.54]
[1749007073219,12.85356796,157.17,157.15,11.74]
[1749007073426,12.85356796,157.16,157.15,11.74]
[1749007074233,12.85356796,157.16,157.15,53.26]
[1749007074465,12.85356796,157.16,157.15,53.24]
[1749007080360,12.85356796,157.16,157.15,53.12]
[1749007080548,12.85356796,157.16,157.15,11.74]
[1749007080859,12.85356796,157.16,157.15,53.12]
[1749007081062,0.8617757,157.18,157.15,53.12]
[1749007081266,12.85356796,157.16,157.15,53.12]
[1749007083186,0.8617757,157.18,157.15,53.12]
[1749007083341,12.85356796,157.17,157.15,71.76964886]
[1749007083535,0.8617757,157.18,157.15,71.76964886]
[1749007083837,12.85356796,157.16,157.15,71.76964886]
[1749007088066,12.85356796,157.16,157.15,53.12]
[1749007089181,12.85356796,157.16,157.15,11.74]
[1749007089362,12.85356796,157.16,157.15,53.04]
[1749007090678,0.8617757,157.18,157.15,53.04]
[1749007091049,12.85356796,157.16,157.15,53.04]
[1749007091282,12.85356796,157.16,157.15,71.68964886]
[1749007096263,12.85356796,157.16,157.15,11.74]
[1749007096463,12.85356796,157.16,157.15,53.0]
[1749007098271,0.8617757,157.18,157.15,53.0]
[1749007098594,12.85356796,157.16,157.15,11.74]
[1749007098759,12.85356796,157.16,157.15,52.96]
[1749007099363,0.8617757,157.18,157.15,52.96]
[1749007099562,12.85356796,157.16,157.15,71.60964886]
[1749007100984,12.85356796,157.16,157.15,52.96]
[1749007102362,12.85356796,157.16,157.15,52.9]
[1749007103673,12.85356796,157.16,157.15,52.88]
[1749007103970,12.85356796,157.16,157.15,11.74]
[1749007104285,14.45386796,157.16,157.14,11.5]
[1749007104488,12.85356796,157.15,157.14,11.5]
[1749007104669,38.85356796,157.15,157.14,11.5]
[1749007105279,26.0,157.12,157.11,54.92]
[1749007105466,51.70713592,157.12,157.11,107.52]
[1749007105773,51.70713592,157.12,157.11,66.42]
[1749007105969,51.70713592,157.12,157.11,107.52]
[1749007107480,51.70713592,157.12,157.07,18.64964886]
[1749007107696,12.85356796,157.08,157.02,19.07613357]
[1749007107865,12.85356796,157.08,157.05,0.28432314]
[1749007108067,26.0,157.13,157.07,18.64964886]
[1749007108288,26.0,157.13,157.08,0.28432314]
[1749007108289,12.85356796,157.1,157.08,0.28432314]
[1749007108496,12.85356796,157.1,157.09,41.1]
[1749007109669,26.0,157.14,157.1,18.64964886]
[1749007109868,12.85356796,157.11,157.1,18.64964886]
[1749007110184,12.85356796,157.12,157.1,18.933972]
[1749007110390,26.0,157.15,157.11,0.28432314]
[1749007110705,12.85356796,157.15,157.13,0.28432314]
[1749007111005,12.85356796,157.15,157.14,41.08]
[1749007112285,12.85356796,157.15,157.14,59.72964886]
[1749007115282,12.85356796,157.15,157.14,71.22964886]
[1749007116803,12.85356796,157.15,157.14,52.58]
[1749007117889,12.85356796,157.15,157.14,11.5]
[1749007118086,12.85356796,157.15,157.14,52.54]
[1749007120400,38.85356796,157.15,157.14,52.54]
[1749007123099,26.0,157.15,157.14,52.54]
[1749007123275,26.0,157.15,157.14,11.5]
[1749007123478,38.85356796,157.15,157.14,52.52]
[1749007127105,38.85356796,157.15,157.14,11.5]
[1749007127287,38.85356796,157.15,157.14,52.44]
[1749007139298,12.85356796,157.15,157.14,52.44]
[1749007139498,12.85356796,157.15,157.14,71.08964886]
[1749007139919,0.8617757,157.18,157.15,18.64964886]
[1749007140112,12.85356796,157.16,157.15,18.64964886]
[1749007141316,0.8617757,157.18,157.15,18.64964886]
[1749007141901,12.85356796,157.17,157.15,18.64964886]
[1749007142106,12.85356796,157.16,157.15,18.64964886]
[1749007143326,0.8617757,157.18,157.15,18.64964886]
[1749007143505,12.85356796,157.17,157.15,18.64964886]
[1749007144923,38.85356796,157.16,157.07,62.7964]
[1749007145126,12.85356796,157.12,157.08,70.75181043]
[1749007145329,12.85356796,157.12,157.08,83.60537839]
[1749007145640,0.8617757,157.18,157.13,0.28432314]
[1749007145816,12.85356796,157.16,157.15,18.64964886]
[1749007146700,12.85356796,157.17,157.15,18.64964886]
[1749007149339,0.8617757,157.18,157.16,0.28432314]
[1749007149507,13.71534366,157.18,157.16,0.28432314]
[1749007150127,12.85356796,157.17,157.16,0.28432314]
[1749007150326,12.85356796,157.17,157.15,18.64964886]
[1749007150515,12.85356796,157.16,157.15,18.933972]
[1749007151813,12.85356796,157.17,157.15,18.933972]
[1749007152937,0.8617757,157.18,157.16,0.28432314]
[1749007153116,13.71534366,157.18,157.16,0.28432314]
[1749007154534,0.8617757,157.18,157.16,0.42648471]
[1749007154714,0.8617757,157.18,157.17,12.99572953]
[1749007154915,0.8617757,157.18,157.17,57.92970153]
[1749007159147,0.8617757,157.18,157.17,31.92970153]
[1749007162862,16.95053682,157.28,157.17,31.92970153]
[1749007162863,4.09696886,157.28,157.23,18.64964886]
[1749007163143,4.09696886,157.28,157.22,13.1378911]
[1749007163144,12.85356796,157.26,157.25,18.64964886]
[1749007166970,2.54356886,157.28,157.25,18.64964886]
[1749007167652,12.85356796,157.27,157.25,18.64964886]
[1749007168640,12.85356796,157.26,157.25,18.64964886]
[1749007169241,2.54356886,157.28,157.25,18.933972]
[1749007169439,12.85356796,157.27,157.26,0.28432314]
[1749007169841,15.39713682,157.28,157.26,0.28432314]
[1749007170064,2.54356886,157.28,157.26,0.28432314]
[1749007170361,15.39713682,157.28,157.26,0.28432314]
[1749007170567,12.85356796,157.27,157.26,0.28432314]
[1749007170749,15.39713682,157.28,157.26,0.28432314]
[1749007171150,2.54356886,157.28,157.26,0.28432314]
[1749007171463,15.39713682,157.28,157.26,0.28432314]
[1749007171864,12.85356796,157.27,157.26,0.28432314]
[1749007172075,2.54356886,157.28,157.26,0.28432314]
[1749007172362,2.54356886,157.28,157.27,18.79181043]
[1749007172738,2.54356886,157.28,157.27,0.14216157]
[1749007172965,2.54356886,157.28,157.27,18.79181043]
[1749007173580,2.54356886,157.28,157.27,19.07613357]
[1749007174249,2.54356886,157.28,157.27,18.933972]
[1749007174944,2.54356886,157.28,157.27,18.79181043]
[1749007175963,2.54356886,157.28,157.26,0.14216157]
[1749007176748,2.54356886,157.28,157.26,31.92970153]
[1749007177345,2.54356886,157.28,157.26,19.07613357]
[1749007177548,2.54356886,157.28,157.26,0.42648471]
[1749007178664,2.54356886,157.28,157.26,13.28005267]
[1749007179062,2.54356886,157.28,157.27,12.99572953]
[1749007179283,2.54356886,157.28,157.27,0.14216157]
[1749007182352,2.54356886,157.28,157.27,13.28005267]
[1749007183389,2.54356886,157.28,157.25,18.64964886]
[1749007183566,2.54356886,157.28,157.26,51.88]
[1749007184400,2.54356886,157.28,157.27,18.64964886]
[1749007185302,2.54356886,157.28,157.27,31.92970153]
[1749007185608,2.54356886,157.28,157.27,19.07613357]
[1749007188195,2.54356886,157.28,157.27,72.66970153]
[1749007189183,1.594,157.4,157.31,18.64964886]
[1749007189371,1.594,157.4,157.3,26.0]
[1749007189372,12.85356796,157.37,157.33,31.50321682]
[1749007189575,12.85356796,157.36,157.35,18.64964886]
[1749007190907,1.594,157.4,157.36,0.14216157]
[1749007191105,12.85356796,157.37,157.35,18.64964886]
[1749007192109,1.594,157.4,157.36,0.14216157]
[1749007192418,12.85356796,157.38,157.35,18.64964886]
[1749007192606,1.594,157.4,157.35,18.64964886]
[1749007192607,12.85356796,157.37,157.35,18.64964886]
[1749007193106,1.594,157.4,157.33,18.79181043]
[1749007193107,12.85356796,157.36,157.33,18.79181043]
[1749007193317,1.594,157.4,157.35,18.64964886]
[1749007193511,12.85356796,157.36,157.32,11.18]
[1749007193825,12.85356796,157.33,157.32,11.18]
[1749007194023,12.85356796,157.33,157.32,51.96]
[1749007194398,12.85356796,157.33,157.32,51.98]
[1749007195418,12.85356796,157.33,157.32,11.18]
[1749007195595,14.46396796,157.33,157.32,11.18]
[1749007195913,14.46396796,157.33,157.32,51.98]
[1749007196729,14.46396796,157.33,157.32,51.96]
[1749007197630,14.46396796,157.33,157.32,11.18]
[1749007197846,14.46396796,157.33,157.32,51.96]
[1749007198827,14.46396796,157.33,157.32,11.18]
[1749007199028,14.46396796,157.33,157.3,54.86]
[1749007199208,12.85356796,157.31,157.3,54.86]
[1749007199409,12.85356796,157.31,157.26,18.933972]
[1749007199612,12.85356796,157.27,157.26,19.07613357]
[1749007200027,12.85356796,157.27,157.26,59.81613357]
[1749007200428,12.85356796,157.27,157.26,0.14216157]
[1749007200636,12.85356796,157.27,157.26,18.79181043]
[1749007200948,12.85356796,157.27,157.26,59.38964886]
[1749007201117,12.85356796,157.27,157.26,18.64964886]
[1749007201624,12.85356796,157.27,157.26,59.38964886]
[1749007202032,1.6104,157.33,157.26,59.38964886]
[1749007202252,1.6104,157.33,157.27,18.64964886]
[1749007202537,1.6104,157.33,157.28,0.14216157]
[1749007202722,6.473,157.36,157.28,0.14216157]
[1749007202723,12.85356796,157.29,157.28,0.14216157]
[1749007202921,12.85356796,157.36,157.28,0.42648471]
[1749007203126,12.85356796,157.3,157.28,0.42648471]
[1749007203328,1.633,157.37,157.29,18.64964886]
[1749007203517,12.85356796,157.33,157.29,18.64964886]
[1749007203716,6.029,157.4,157.32,0.42648471]
[1749007203717,12.85356796,157.34,157.32,0.42648471]
[1749007203927,12.85356796,157.34,157.33,59.55181043]
[1749007204137,6.029,157.4,157.33,59.40964886]
[1749007204333,12.85356796,157.35,157.34,19.07613357]
[1749007204643,12.85356796,157.36,157.35,0.28432314]
[1749007205355,18.97416796,157.44,157.36,18.79181043]
[1749007205658,12.85356796,157.37,157.36,18.79181043]
[1749007206539,12.85356796,157.37,157.35,11.18]
[1749007206747,25.70713592,157.36,157.35,29.82964886]
[1749007206943,12.85356796,157.36,157.35,70.60964886]
[1749007207542,12.85356796,157.36,157.35,70.75181043]
[1749007208736,12.85356796,157.36,157.35,70.73181043]
[1749007209158,25.70713592,157.36,157.35,70.58964886]
[1749007209357,12.85356796,157.36,157.35,70.58964886]
[1749007209880,18.97416796,157.44,157.35,70.58964886]
[1749007210175,18.97416796,157.44,157.35,71.01613357]
[1749007210176,12.85356796,157.36,157.35,71.01613357]
[1749007215370,12.85356796,157.36,157.34,54.86]
[1749007215371,25.70713592,157.36,157.34,54.86]
[1749007215584,12.85356796,157.36,157.35,40.74]
[1749007215777,12.85356796,157.36,157.35,59.38964886]
[1749007216076,1.6589,157.41,157.36,18.64964886]
[1749007216268,1.6589,157.41,157.35,40.74]
[1749007217266,12.85356796,157.36,157.35,59.38964886]
[1749007217657,25.70713592,157.36,157.35,59.38964886]
[1749007218071,25.70713592,157.36,157.34,66.06]
[1749007218261,25.70713592,157.36,157.29,18.64964886]
[1749007218262,12.85356796,157.35,157.29,18.64964886]
[1749007218458,12.85356796,157.31,157.3,0.28432314]
[1749007219475,12.85356796,157.31,157.3,59.81613357]
[1749007220777,12.85356796,157.36,157.31,18.79181043]
[1749007220983,12.85356796,157.32,157.31,18.79181043]
[1749007222479,12.85356796,157.32,157.31,18.64964886]
[1749007222683,12.85356796,157.32,157.31,59.30964886]
[1749007223201,12.85356796,157.32,157.27,0.14216157]
[1749007223371,12.85356796,157.28,157.27,0.14216157]
[1749007223569,25.70713592,157.28,157.27,18.64964886]
[1749007223775,12.85356796,157.28,157.27,18.64964886]
[1749007223984,12.85356796,157.28,157.27,59.30964886]
[1749007224186,1.6051,157.34,157.28,18.64964886]
[1749007224394,1.6051,157.34,157.29,40.66]
[1749007224612,1.6051,157.34,157.3,59.30964886]
[1749007225296,1.6051,157.34,157.31,11.2]
[1749007225683,12.85356796,157.32,157.3,59.30964886]
[1749007225995,1.6051,157.34,157.27,18.64964886]
[1749007226208,1.6051,157.34,157.24,0.14216157]
[1749007226374,1.6051,157.34,157.24,0.42648471]
[1749007227077,12.85356796,157.25,157.24,0.42648471]
[1749007227286,1.6051,157.34,157.26,0.42648471]
[1749007227502,12.85356796,157.28,157.26,0.42648471]
[1749007227702,1.6051,157.34,157.26,0.42648471]
[1749007227903,12.85356796,157.28,157.26,0.42648471]
[1749007229104,12.85356796,157.27,157.24,0.14216157]
[1749007229406,12.85356796,157.28,157.26,18.64964886]
[1749007230497,12.85356796,157.27,157.23,19.07613357]
[1749007230697,12.85356796,157.24,157.23,19.07613357]
[1749007231009,12.85356796,157.24,157.23,59.73613357]
[1749007231321,12.85356796,157.25,157.23,59.71613357]
[1749007232617,1.6051,157.34,157.23,59.71613357]
[1749007232792,12.85356796,157.25,157.23,59.71613357]
[1749007234097,1.6051,157.34,157.23,59.71613357]
[1749007234098,12.85356796,157.28,157.27,19.07613357]
[1749007235327,1.6051,157.34,157.27,85.13613357]
[1749007235506,8.267,157.38,157.27,85.13613357]
[1749007235709,12.85356796,157.29,157.27,85.13613357]
[1749007235899,12.85356796,157.28,157.27,85.13613357]
[1749007236298,12.85356796,157.29,157.27,85.13613357]
[1749007237104,8.267,157.38,157.27,85.13613357]
[1749007237310,12.85356796,157.3,157.29,45.07613357]
[1749007237510,12.85356796,157.3,157.29,85.61613357]
[1749007238314,8.267,157.38,157.3,18.79181043]
[1749007238535,12.85356796,157.36,157.3,18.79181043]
[1749007238718,12.85356796,157.31,157.3,18.79181043]
[1749007239937,12.85356796,157.36,157.3,18.79181043]
[1749007240138,12.85356796,157.31,157.3,18.79181043]
[1749007243222,8.267,157.38,157.3,18.79181043]
[1749007243410,12.85356796,157.31,157.3,164.79181043]
[1749007245510,12.85356796,157.31,157.3,175.85181043]
[1749007245831,8.267,157.38,157.3,175.70964886]
[1749007246033,12.85356796,157.36,157.31,40.46]
[1749007246331,12.85356796,157.36,157.3,11.06]
[1749007246332,12.85356796,157.32,157.3,11.06]
[1749007246536,12.85356796,157.31,157.3,11.06]
[1749007246735,12.85356796,157.31,157.3,51.58]
[1749007247618,12.85356796,157.36,157.31,18.64964886]
[1749007247816,8.267,157.38,157.31,164.64964886]
[1749007248019,12.85356796,157.32,157.31,164.64964886]
[1749007250056,27.22533592,157.32,157.31,11.06]
[1749007250346,27.22533592,157.32,157.24,18.64964886]
[1749007250551,12.85356796,157.28,157.25,0.14216157]
[1749007250724,12.85356796,157.26,157.25,0.14216157]
[1749007251347,12.85356796,157.26,157.24,18.64964886]
[1749007251645,12.85356796,157.25,157.24,19.07613357]
[1749007251945,12.85356796,157.25,157.24,59.55613357]
[1749007252653,12.85356796,157.25,157.24,19.07613357]
[1749007252820,12.85356796,157.25,157.24,59.53613357]
[1749007253023,12.85356796,157.25,157.24,18.79181043]
[1749007253226,7.812,157.32,157.25,0.14216157]
[1749007253530,12.85356796,157.26,157.25,0.14216157]
[1749007253836,7.812,157.32,157.25,0.14216157]
[1749007254044,12.85356796,157.26,157.25,0.14216157]
[1749007254628,1.5182,157.32,157.25,0.42648471]
[1749007254948,1.5182,157.32,157.27,0.14216157]
[1749007255337,7.7383,157.36,157.29,18.64964886]